fUSD/lending_fUSD_20241127
["ID","MTS","AMOUNT","RATE_DAILY","PERIOD"]
[343564641,1732725032460,-267.3186,9.1e-05,2]
[343564642,1732725032470,-500.0,9.1e-05,2]
[343564643,1732725032479,-15661.9464,9.1e-05,2]
[343564644,1732725032489,-5903.0137,9.1e-05,2]
[343564645,1732725032499,-1000.0,9.1e-05,2]
[343564646,1732725032508,-161.1921,9.1e-05,2]
[343564647,1732725032519,-2500.0,9.1e-05,2]
[343564648,1732725032532,-700.0,9.1e-05,3]
[343564649,1732725032545,-1600.0,9.122e-05,2]
[343564650,1732725032554,-971.82,9.178e-05,2]
[343564651,1732725032564,-434.46,9.178e-05,2]
[343564652,1732725032573,-150.0,9.178e-05,2]
[343564653,1732725032583,-1952.26447776,9.2e-05,2]
[343564654,1732725032595,-3103.2577,9.2e-05,2]
[343564655,1732725032605,-36363.2632921,9.2e-05,2]
[343564656,1732725035215,-510.69877065,9.2e-05,2]
[343564657,1732725035226,-1117.84923725,9.2e-05,2]
[343564658,1732725035236,-1924.09790418,9.2e-05,2]
[343564659,1732725035274,-750.37477044,9.2e-05,2]
[343564660,1732725035287,-602.0,9.2e-05,2]
[343564661,1732725035333,-81882.15462538,9.2e-05,2]
[343564662,1732725035344,-48700.5254,9.2e-05,2]
[343564663,1732725035354,-281011.53939186,9.2e-05,2]
[343564664,1732725035365,-16710.82814,9.2e-05,2]
[343564665,1732725035376,-4321.79265873,9.2e-05,2]
[343564666,1732725035387,-9732.82983115,9.2e-05,2]
[343564667,1732725035399,-1703.61103245,9.2e-05,2]
[343564668,1732725035410,-365.06759219,9.2e-05,2]
[343564669,1732725035422,-1097.95352003,9.2e-05,2]
[343564670,1732725035432,-14361.75,9.2e-05,2]
[343564671,1732725035453,-70797.43151186,9.2e-05,2]
[343564672,1732725035463,-646.9888024,9.2e-05,2]
[343564673,1732725035479,-9535.17963535,9.2e-05,2]
[343564674,1732725035490,-24821.08614636,9.2e-05,2]
[343564675,1732725035511,-12271.64867051,9.2e-05,2]
[343564676,1732725035522,-1096.10478348,9.2e-05,2]
[343564677,1732725035537,-1197.5,9.2e-05,2]
[343564678,1732725035549,-1209.496,9.2e-05,2]
[343564679,1732725035560,-13931.74169975,9.2e-05,2]
[343564680,1732725035571,-513.38219973,9.2e-05,2]
[343564681,1732725035589,-501.29901571,9.2e-05,2]
[343564682,1732725035601,-12197.17705348,9.2e-05,2]
[343564683,1732725035612,-33406.1686118,9.2e-05,2]
[343564690,1732725038402,-9660.53212201,9.2e-05,2]
[343564691,1732725038415,-6596.03655,9.2e-05,2]
[343564701,1732725038840,-4699.45078869,9.2e-05,2]
[343564703,1732725038851,-2642.87674843,9.2e-05,2]
[343564705,1732725038864,-17723.57692508,9.2e-05,2]
[343564708,1732725038884,-686.14873294,9.2e-05,2]
[343564711,1732725038896,-10369.95158582,9.2e-05,2]
[343564713,1732725038906,-935.77684801,9.2e-05,2]
[343564859,1732725040302,-2882.44000001,9.2e-05,2]
[343564882,1732725040510,-256.77938296,9.2e-05,2]
[343564884,1732725040523,-1781.90499908,9.2e-05,2]
[343564886,1732725040538,-349.6673238,9.2e-05,2]
[343564889,1732725040557,-1512.09842724,9.2e-05,2]
[343564891,1732725040568,-719.84688848,9.2e-05,2]
[343564899,1732725040641,-435.13505519,9.2e-05,2]
[343565171,1732725043298,-16474.99453586,9.2e-05,2]
[343565200,1732725043569,-18050.42087002,9.2e-05,2]
[343565203,1732725043584,-9173.99501954,9.2e-05,2]
[343565204,1732725043593,-1335.0928,9.2e-05,2]
[343565207,1732725043603,-525.36,9.2e-05,2]
[343565208,1732725043614,-1000.0,9.2e-05,3]
[343565210,1732725043624,-5339.25804346,9.264e-05,2]
[343565213,1732725043635,-675.60039227,9.264e-05,2]
[343565283,1732725046356,-751.8407936,9.264e-05,2]
[343565284,1732725046470,-10941.30077067,9.264e-05,2]
[343565285,1732725046480,-1400.0,9.3e-05,3]
[343565286,1732725046489,-255.0,9.327e-05,2]
[343565287,1732725046498,-1700.0,9.4e-05,3]
[343565288,1732725046509,-1600.0,9.436e-05,2]
[343565289,1732725046519,-300.0,9.5e-05,3]
[343565290,1732725046528,-169.14,9.505e-05,2]
[343565291,1732725046539,-400.0,9.589e-05,2]
[343565292,1732725046548,-150.0,9.591e-05,2]
[343565293,1732725046558,-300.0,9.6e-05,3]
[343565294,1732725046567,-1000.0,9.641e-05,2]
[343565295,1732725046577,-999.99,9.67e-05,2]
[343565296,1732725046586,-2462.77,9.67e-05,2]
[343565297,1732725046596,-9999.99,9.67e-05,2]
[343565298,1732725046605,-643.37,9.67e-05,2]
[343565299,1732725046615,-4360.32,9.67e-05,2]
[343565300,1732725046626,-150.99,9.67e-05,2]
[343565301,1732725046636,-499.99,9.67e-05,2]
[343565303,1732725046646,-625.0,9.7e-05,2]
[343565305,1732725046655,-625.0,9.7e-05,2]
[343565307,1732725046664,-300.0,9.7e-05,3]
[343565308,1732725046674,-1000.0,9.7e-05,2]
[343565309,1732725046683,-151.07,9.702e-05,2]
[343565310,1732725046692,-150.0,9.702e-05,2]
[343565311,1732725046701,-150.0,9.702e-05,2]
[343565312,1732725046710,-173.24,9.702e-05,2]
[343565313,1732725046720,-150.0,9.702e-05,2]
[343565314,1732725046728,-150.0,9.702e-05,2]
[343565315,1732725046737,-150.0,9.702e-05,2]
[343565316,1732725046746,-289.78,9.702e-05,2]
[343565317,1732725046756,-150.0,9.702e-05,2]
[343565318,1732725046765,-150.0,9.702e-05,2]
[343565320,1732725046775,-150.0,9.702e-05,2]
[343565323,1732725046784,-1600.0,9.75e-05,2]
[343565326,1732725046795,-150.0,9.752e-05,2]
[343565328,1732725046804,-150.0,9.755e-05,2]
[343565330,1732725046812,-150.0,9.759e-05,2]
[343565332,1732725046821,-150.0,9.763e-05,2]
[343565334,1732725046830,-300.0,9.8e-05,3]
[343565336,1732725046839,-150.0,9.826e-05,2]
[343565338,1732725046848,-500.0,9.863e-05,2]
[343565340,1732725046857,-500.0,9.863e-05,2]
[343565342,1732725046866,-500.0,9.863e-05,2]
[343565344,1732725046875,-500.0,9.863e-05,2]
[343565346,1732725046884,-500.0,9.863e-05,2]
[343565348,1732725046893,-500.0,9.863e-05,2]
[343565350,1732725046903,-500.0,9.863e-05,2]
[343565352,1732725046912,-211.19332264,9.863e-05,2]
[343565354,1732725046923,-500.0,9.863e-05,2]
[343565355,1732725046932,-547.19,9.863e-05,2]
[343565357,1732725046944,-500.0,9.863e-05,2]
[343565359,1732725046953,-601.04,9.863e-05,2]
[343565361,1732725046962,-5000.0,9.863e-05,2]
[343565363,1732725046971,-500.0,9.863e-05,2]
[343565365,1732725046980,-500.0,9.863e-05,2]
[343565368,1732725046990,-500.0,9.863e-05,2]
[343565369,1732725047001,-298.09,9.863e-05,2]
[343565371,1732725047013,-500.0,9.863e-05,2]
[343565373,1732725047022,-610.62,9.863e-05,2]
[343565375,1732725047031,-500.0,9.863e-05,2]
[343565377,1732725047042,-500.0,9.863e-05,2]
[343565379,1732725047051,-500.0,9.863e-05,2]
[343565381,1732725047060,-500.0,9.863e-05,2]
[343565383,1732725047069,-500.0,9.863e-05,2]
[343565384,1732725047081,-500.0,9.863e-05,2]
[343565385,1732725047092,-546.57,9.863e-05,2]
[343565386,1732725047102,-500.0,9.863e-05,2]
[343565387,1732725047114,-500.0,9.863e-05,2]
[343565388,1732725047125,-293.96,9.863e-05,2]
[343565389,1732725047136,-500.0,9.863e-05,2]
[343565390,1732725047145,-500.0,9.863e-05,2]
[343565391,1732725047154,-500.0,9.863e-05,2]
[343565392,1732725047163,-352.55,9.863e-05,2]
[343565393,1732725047172,-500.0,9.863e-05,2]
[343565394,1732725047181,-424.56,9.863e-05,2]
[343565395,1732725047191,-500.0,9.863e-05,2]
[343565396,1732725047202,-500.0,9.863e-05,2]
[343565397,1732725047211,-500.0,9.863e-05,2]
[343565398,1732725047220,-625.19,9.863e-05,2]
[343565399,1732725047229,-500.0,9.863e-05,2]
[343565400,1732725047238,-500.0,9.863e-05,2]
[343565401,1732725047247,-500.0,9.863e-05,2]
[343565402,1732725047256,-500.0,9.863e-05,2]
[343565403,1732725047265,-500.0,9.863e-05,2]
[343565404,1732725047275,-500.0,9.863e-05,2]
[343565405,1732725047284,-263.62,9.863e-05,2]
[343565406,1732725047296,-500.0,9.863e-05,2]
[343565407,1732725047306,-500.0,9.863e-05,2]
[343565408,1732725047316,-500.0,9.863e-05,2]
[343565409,1732725047325,-500.0,9.863e-05,2]
[343565410,1732725047334,-221.78,9.863e-05,2]
[343565411,1732725047343,-360.8,9.863e-05,2]
[343565412,1732725047353,-500.0,9.863e-05,2]
[343565413,1732725047362,-507.08,9.863e-05,2]
[343565414,1732725047371,-500.0,9.863e-05,2]
[343565415,1732725047388,-500.0,9.863e-05,2]
[343565416,1732725047400,-500.0,9.863e-05,2]
[343565417,1732725047409,-402.88920512,9.863e-05,2]
[343565418,1732725047418,-333.5,9.863e-05,2]
[343565419,1732725047428,-500.0,9.863e-05,2]
[343565420,1732725047438,-500.0,9.863e-05,2]
[343565421,1732725047447,-500.0,9.863e-05,2]
[343565422,1732725047457,-500.0,9.863e-05,2]
[343565423,1732725047467,-204.87,9.863e-05,2]
[343565424,1732725047477,-500.0,9.863e-05,2]
[343565425,1732725047486,-500.0,9.863e-05,2]
[343565426,1732725047496,-252.14,9.863e-05,2]
[343565427,1732725047505,-500.0,9.863e-05,2]
[343565428,1732725047515,-500.0,9.863e-05,2]
[343565429,1732725047525,-500.0,9.863e-05,2]
[343565430,1732725047535,-500.0,9.863e-05,2]
[343565431,1732725047550,-279.66,9.863e-05,2]
[343565432,1732725047560,-500.0,9.863e-05,2]
[343565433,1732725047570,-500.0,9.863e-05,2]
[343565434,1732725047579,-500.0,9.863e-05,2]
[343565435,1732725047589,-500.0,9.863e-05,2]
[343565436,1732725047598,-208.61,9.863e-05,2]
[343565437,1732725047607,-500.0,9.863e-05,2]
[343565438,1732725047616,-234.5,9.863e-05,2]
[343565439,1732725047625,-500.0,9.863e-05,2]
[343565440,1732725047635,-500.0,9.863e-05,2]
[343565441,1732725047644,-461.62,9.863e-05,2]
[343565442,1732725047653,-500.0,9.863e-05,2]
[343565443,1732725047663,-500.0,9.863e-05,2]
[343565444,1732725047672,-500.0,9.863e-05,2]
[343565445,1732725047681,-500.0,9.863e-05,2]
[343565446,1732725047690,-500.0,9.863e-05,2]
[343565447,1732725047699,-500.0,9.863e-05,2]
[343565448,1732725047708,-500.0,9.863e-05,2]
[343565449,1732725047717,-500.0,9.863e-05,2]
[343565450,1732725047726,-362.14,9.863e-05,2]
[343565451,1732725047735,-500.0,9.863e-05,2]
[343565452,1732725047745,-500.0,9.863e-05,2]
[343565453,1732725047755,-500.0,9.863e-05,2]
[343565454,1732725047764,-500.0,9.863e-05,2]
[343565455,1732725047775,-500.0,9.863e-05,2]
[343565456,1732725047784,-500.0,9.863e-05,2]
[343565457,1732725047796,-500.0,9.863e-05,2]
[343565458,1732725047806,-500.0,9.863e-05,2]
[343565459,1732725047815,-387.48,9.863e-05,2]
[343565460,1732725047825,-500.0,9.863e-05,2]
[343565461,1732725047835,-500.0,9.863e-05,2]
[343565462,1732725047844,-616.9,9.863e-05,2]
[343565463,1732725047854,-500.0,9.863e-05,2]
[343565464,1732725047864,-500.0,9.863e-05,2]
[343565465,1732725047874,-500.0,9.863e-05,2]
[343565466,1732725047883,-500.0,9.863e-05,2]
[343565467,1732725047892,-642.26,9.863e-05,2]
[343565468,1732725047904,-500.0,9.863e-05,2]
[343565469,1732725047914,-500.0,9.863e-05,2]
[343565470,1732725047923,-500.0,9.863e-05,2]
[343565471,1732725047935,-500.0,9.863e-05,2]
[343565472,1732725047946,-586.7,9.863e-05,2]
[343565473,1732725047957,-500.0,9.863e-05,2]
[343565474,1732725047967,-500.0,9.863e-05,2]
[343565475,1732725047976,-500.0,9.863e-05,2]
[343565476,1732725047986,-500.0,9.863e-05,2]
[343565477,1732725047996,-500.0,9.863e-05,2]
[343565478,1732725048005,-500.0,9.863e-05,2]
[343565479,1732725048015,-500.0,9.863e-05,2]
[343565480,1732725048025,-500.0,9.863e-05,2]
[343565481,1732725048035,-500.0,9.863e-05,2]
[343565482,1732725048050,-500.0,9.863e-05,2]
[343565483,1732725048060,-401.74,9.863e-05,2]
[343565484,1732725048069,-500.0,9.863e-05,2]
[343565485,1732725048079,-504.89,9.863e-05,2]
[343565486,1732725048089,-272.86322647,9.863e-05,2]
[343565487,1732725108232,-200.0,8.955e-05,2]
[343565488,1732725151352,150.0,8.366e-05,2]
[343565489,1732725166717,-17.05,8.366e-05,2]
[343565490,1732725166739,-3389.97,8.943e-05,2]
[343565491,1732725166762,-250.0,8.967e-05,2]
[343565492,1732725166786,-300.0,9.099e-05,2]
[343565493,1732725166810,-663.8995,9.1e-05,2]
[343565494,1732725166833,-37991.8113,9.1e-05,2]
[343565495,1732725166856,-433.9473,9.1e-05,2]
[343565496,1732725166879,-2953.3219,9.1e-05,2]
[343565497,1732725281307,150.0,0.0001,5]
[343565500,1732725838993,-73728.0,8.139e-05,2]
[343565501,1732725839025,-1272.0,8.219e-05,2]
[343565509,1732726162080,153.0,0.00025989,90]
[343565522,1732726231508,-365.63,7.877e-05,2]
[343565523,1732726231517,-3731.35,7.933e-05,2]
[343565525,1732726231527,-2645.27964833,7.933e-05,2]
[343565526,1732726231551,-20459.48492924,7.933e-05,2]
[343565527,1732726231562,-1757.72,7.939e-05,2]
[343565528,1732726231574,-5062.2,7.942e-05,2]
[343565529,1732726231583,-787.68,7.946e-05,2]
[343565530,1732726231592,-17201.17337101,8.11e-05,2]
[343565531,1732726231604,-5670.36895933,8.11e-05,2]
[343565532,1732726231616,-1024.82069282,8.11e-05,2]
[343565533,1732726231628,-3.63697684,8.11e-05,2]
[343565534,1732726231638,-200.0,8.11e-05,2]
[343565535,1732726231648,-1543.050019,8.178e-05,2]
[343565536,1732726231657,-203.404,8.213e-05,2]
[343565537,1732726231667,-860.53,8.219e-05,2]
[343565538,1732726231677,-166.57,8.219e-05,2]
[343565539,1732726231686,-1892.39,8.219e-05,2]
[343565540,1732726231695,-500.0,8.281e-05,2]
[343565541,1732726231705,-250.0,8.549e-05,2]
[343565542,1732726231714,-1000.0,8.549e-05,2]
[343565543,1732726231723,-339.56,8.549e-05,2]
[343565544,1732726231732,-1500.0,8.549e-05,2]
[343565545,1732726231742,-250.0,8.549e-05,2]
[343565546,1732726231751,-263.65759138,8.549e-05,2]
[343565547,1732726231775,-1736.34240862,8.549e-05,2]
[343565548,1732726231785,-155.51,8.579e-05,2]
[343565549,1732726231794,-1600.0,8.655e-05,2]
[343565550,1732726231803,-3036.14392507,8.718e-05,2]
[343565551,1732726231812,-150.0,8.726e-05,2]
[343565552,1732726231821,-21352.55561493,8.727e-05,2]
[343565553,1732726231830,-3275.38,8.767e-05,2]
[343565554,1732726231839,-177.24,8.784e-05,2]
[343565555,1732726231848,-2500.0,8.8e-05,2]
[343565556,1732726231857,-250.0,8.827e-05,2]
[343565557,1732726231866,-365.63,8.862e-05,2]
[343565558,1732726231876,-3868.53,8.898e-05,2]
[343565559,1732726231886,-1852.42,8.898e-05,2]
[343565560,1732726231895,-2637.7209,8.9e-05,2]
[343565561,1732726231904,-6757.7969,8.9e-05,2]
[343565562,1732726231913,-2830.7866,8.9e-05,2]
[343565563,1732726231923,-11763.47130429,8.9e-05,2]
[343565564,1732726231960,-4847.0589,8.9e-05,2]
[343565565,1732726231971,-4002.70149682,8.9e-05,2]
[343565566,1732726231982,-24022.35205532,8.9e-05,2]
[343565567,1732726231993,-12115.96872063,8.9e-05,2]
[343565568,1732726232004,-63582.76495791,8.9e-05,2]
[343565569,1732726232040,-46520.71876503,8.9e-05,2]
[343565571,1732726232050,-1000.0,8.9e-05,2]
[343565573,1732726232059,-3846.155,8.9e-05,2]
[343565575,1732726232069,-434.46,8.918e-05,2]
[343565577,1732726232078,-150.0,8.928e-05,2]
[343565579,1732726232087,-434.46,8.948e-05,2]
[343565581,1732726232096,-150.0,8.948e-05,2]
[343565583,1732726232105,-1600.0,8.975e-05,2]
[343565585,1732726232114,-220.23,8.982e-05,2]
[343565587,1732726232127,-1480.0745,9e-05,2]
[343565589,1732726232136,-841.0814,9e-05,2]
[343565591,1732726232145,-119257.9005,9e-05,2]
[343565593,1732726232154,-426127.02076552,9e-05,2]
[343565595,1732726232163,-800.0,9e-05,3]
[343565597,1732726232172,-363.48,9.018e-05,2]
[343565599,1732726232181,-150.0,9.018e-05,2]
[343565601,1732726232190,-363.48,9.028e-05,2]
[343565602,1732726232199,-150.0,9.048e-05,2]
[343565603,1732726232208,-572.95,9.048e-05,2]
[343565604,1732726232217,-150.0,9.048e-05,2]
[343565605,1732726232226,-150.0,9.048e-05,2]
[343565606,1732726232235,-21606.6585,9.1e-05,2]
[343565607,1732726232244,-6469.119,9.1e-05,2]
[343565608,1732726232253,-500.0,9.1e-05,2]
[343565609,1732726232262,-8205.9987,9.1e-05,2]
[343565610,1732726232270,-18.13724467,9.1e-05,2]
[343565611,1732726232281,-2885.49,9.1e-05,2]
[343565616,1732726237679,-1105.1909775,7.933e-05,2]
[343565617,1732726237741,-4859.16406141,7.933e-05,2]
[343565618,1732726237750,-5072.6466487,9.1e-05,2]
[343565619,1732726237761,-5454.48508016,9.1e-05,2]
[343565620,1732726237776,-48043.53002019,9.1e-05,2]
[343565621,1732726237787,-3560.51639454,9.1e-05,2]
[343565622,1732726237798,-3146.80663877,9.1e-05,2]
[343565623,1732726237810,-29136.35887297,9.1e-05,2]
[343565624,1732726237819,-10009.4567,9.1e-05,2]
[343565625,1732726237829,-1700.0,9.1e-05,3]
[343565626,1732726237838,-172.58,9.12e-05,2]
[343565627,1732726237847,-300.0,9.178e-05,2]
[343565628,1732726237859,-363.48,9.178e-05,2]
[343565629,1732726237872,-150.0,9.178e-05,2]
[343565630,1732726237881,-971.82,9.178e-05,2]
[343565631,1732726237890,-2600.0,9.2e-05,3]
[343565632,1732726237899,-1600.0,9.295e-05,2]
[343565633,1732726237909,-3400.0,9.3e-05,3]
[343565634,1732726237918,-4300.0,9.4e-05,3]
[343565635,1732726237927,-150.0,9.444e-05,2]
[343565636,1732726237936,-800.0,9.5e-05,3]
[343565637,1732726237947,-400.0,9.589e-05,2]
[343565638,1732726237957,-255.0,9.599e-05,2]
[343565639,1732726237967,-800.0,9.6e-05,3]
[343565640,1732726237977,-1600.0,9.615e-05,2]
[343565642,1732726237986,-1000.0,9.618e-05,2]
[343565644,1732726237995,-8384.4,9.67e-05,2]
[343565646,1732726238005,-150.99,9.67e-05,2]
[343565647,1732726238016,-2985.91442708,9.67e-05,2]
[343565649,1732726238045,-96.83557292,9.67e-05,2]
[343565651,1732726238054,-690.96,9.67e-05,2]
[343565653,1732726238064,-800.0,9.7e-05,3]
[343565655,1732726238073,-371.63,9.702e-05,2]
[343565657,1732726238082,-363.48,9.702e-05,2]
[343565659,1732726238091,-262.59,9.702e-05,2]
[343565661,1732726238101,-150.0,9.702e-05,2]
[343565663,1732726238110,-866.51,9.702e-05,2]
[343565665,1732726238122,-150.0,9.702e-05,2]
[343565667,1732726238131,-363.48,9.702e-05,2]
[343565669,1732726238140,-434.46,9.702e-05,2]
[343565671,1732726238149,-150.41,9.702e-05,2]
[343565673,1732726238158,-861.41,9.702e-05,2]
[343565675,1732726238167,-150.0,9.73e-05,2]
[343565677,1732726238176,-1500.0,9.732e-05,2]
[343565679,1732726238187,-150.0,9.736e-05,2]
[343565681,1732726238196,-1500.0,9.737e-05,2]
[343565683,1732726238206,-242.68697663,9.742e-05,2]
[343565686,1732726238221,-43093.02562337,9.742e-05,2]
[343565688,1732726238231,-889.4398,9.742e-05,2]
[343565690,1732726238240,-150.0,9.744e-05,2]
[343565692,1732726238250,-150.0,9.744e-05,2]
[343565694,1732726238259,-150.0,9.745e-05,2]
[343565696,1732726238269,-150.0,9.748e-05,2]
[343565698,1732726238278,-150.0,9.752e-05,2]
[343565699,1732726238286,-150.0,9.752e-05,2]
[343565701,1732726238295,-500.0,9.753e-05,2]
[343565703,1732726238305,-150.0,9.754e-05,2]
[343565705,1732726238314,-150.0,9.754e-05,2]
[343565707,1732726238323,-1500.0,9.76e-05,2]
[343565709,1732726238334,-150.0,9.761e-05,2]
[343565711,1732726238343,-11259.8936,9.763e-05,2]
[343565713,1732726238352,-1000.0,9.763e-05,2]
[343565715,1732726238362,-2500.0,9.763e-05,2]
[343565717,1732726238374,-4923.00435436,9.763e-05,2]
[343565719,1732726238383,-150.0,9.765e-05,2]
[343565721,1732726238392,-150.0,9.771e-05,2]
[343565723,1732726238401,-1500.0,9.772e-05,2]
[343565725,1732726238410,-1000.0,9.774e-05,2]
[343565727,1732726238419,-150.0,9.777e-05,2]
[343565729,1732726238430,-151.33753752,9.78e-05,2]
[343565731,1732726238439,-150.0,9.791e-05,2]
[343565733,1732726238449,-1500.0,9.791e-05,2]
[343565735,1732726238458,-326.16340222,9.793e-05,2]
[343565737,1732726238467,-1500.0,9.796e-05,2]
[343565739,1732726238477,-1500.0,9.796e-05,2]
[343565741,1732726238488,-150.0,9.798e-05,2]
[343565743,1732726238499,-800.0,9.8e-05,3]
[343565745,1732726238509,-150.0,9.802e-05,2]
[343565747,1732726238519,-881.96123684,9.806e-05,2]
[343565749,1732726238528,-150.0,9.808e-05,2]
[343565751,1732726238538,-150.0,9.812e-05,2]
[343565753,1732726238547,-1500.0,9.817e-05,2]
[343565755,1732726238557,-150.0,9.818e-05,2]
[343565757,1732726238569,-150.0,9.82e-05,2]
[343565759,1732726238579,-1500.0,9.823e-05,2]
[343565761,1732726238588,-156.60634109,9.826e-05,2]
[343565763,1732726238597,-1500.0,9.836e-05,2]
[343565765,1732726238606,-500.0,9.843e-05,2]
[343565767,1732726238616,-499.0,9.843e-05,2]
[343565768,1732726238629,-500.0,9.843e-05,2]
[343565771,1732726238640,-508.87350147,9.843e-05,2]
[343565772,1732726238649,-157.36242319,9.843e-05,2]
[343565774,1732726238660,-500.0,9.843e-05,2]
[343565776,1732726238670,-159.36017533,9.843e-05,2]
[343565778,1732726238679,-500.0,9.843e-05,2]
[343565780,1732726238689,-150.0,9.843e-05,2]
[343565782,1732726238698,-150.0,9.845e-05,2]
[343565784,1732726238707,-150.0,9.846e-05,2]
[343565786,1732726238716,-365.63,9.846e-05,2]
[343565788,1732726238726,-150.0,9.847e-05,2]
[343565790,1732726238736,-298.82561974,9.852e-05,2]
[343565792,1732726238746,-150.0,9.853e-05,2]
[343565794,1732726238756,-150.0,9.856e-05,2]
[343565796,1732726238767,-150.0,9.858e-05,2]
[343565798,1732726238776,-150.0,9.86e-05,2]
[343565800,1732726238786,-1500.0,9.86e-05,2]
[343565802,1732726238795,-502.16004317,9.863e-05,2]
[343565804,1732726238804,-500.0,9.863e-05,2]
[343565806,1732726238813,-500.0,9.863e-05,2]
[343565808,1732726238823,-500.0,9.863e-05,2]
[343565810,1732726238832,-500.0,9.863e-05,2]
[343565812,1732726238842,-573.18516907,9.863e-05,2]
[343565814,1732726238852,-500.0,9.863e-05,2]
[343565816,1732726238861,-500.0,9.863e-05,2]
[343565818,1732726238877,-500.0,9.863e-05,2]
[343565820,1732726238889,-500.0,9.863e-05,2]
[343565822,1732726238898,-500.0,9.863e-05,2]
[343565824,1732726238908,-500.0,9.863e-05,2]
[343565825,1732726238917,-500.0,9.863e-05,2]
[343565826,1732726238927,-500.0,9.863e-05,2]
[343565827,1732726238936,-165.93,9.863e-05,2]
[343565828,1732726238945,-5000.0,9.863e-05,2]
[343565829,1732726238955,-5000.0,9.863e-05,2]
[343565830,1732726238964,-500.0,9.863e-05,2]
[343565831,1732726238973,-500.0,9.863e-05,2]
[343565832,1732726238982,-500.0,9.863e-05,2]
[343565833,1732726238991,-471.42674164,9.863e-05,2]
[343565834,1732726239001,-500.0,9.863e-05,2]
[343565835,1732726239011,-354.94,9.863e-05,2]
[343565836,1732726239021,-500.0,9.863e-05,2]
[343565837,1732726239031,-500.0,9.863e-05,2]
[343565839,1732726239040,-500.0,9.863e-05,2]
[343565840,1732726239049,-485.44,9.863e-05,2]
[343565842,1732726239058,-500.0,9.863e-05,2]
[343565844,1732726239067,-500.0,9.863e-05,2]
[343565846,1732726239077,-538.32,9.863e-05,2]
[343565848,1732726239086,-500.0,9.863e-05,2]
[343565850,1732726239095,-508.16364689,9.863e-05,2]
[343565852,1732726239105,-500.0,9.863e-05,2]
[343565854,1732726239114,-500.0,9.863e-05,2]
[343565856,1732726239125,-500.0,9.863e-05,2]
[343565858,1732726239134,-205.1,9.863e-05,2]
[343565860,1732726239144,-445.15586443,9.863e-05,2]
[343565862,1732726239153,-500.0,9.863e-05,2]
[343565864,1732726239163,-448.9,9.863e-05,2]
[343565866,1732726239172,-500.0,9.863e-05,2]
[343565868,1732726239181,-500.0,9.863e-05,2]
[343565870,1732726239191,-500.0,9.863e-05,2]
[343565872,1732726239200,-500.0,9.863e-05,2]
[343565874,1732726239209,-500.0,9.863e-05,2]
[343565876,1732726239218,-500.0,9.863e-05,2]
[343565878,1732726239227,-500.0,9.863e-05,2]
[343565880,1732726239236,-293.96,9.863e-05,2]
[343565883,1732726239245,-507.44253531,9.863e-05,2]
[343565885,1732726239254,-500.0,9.863e-05,2]
[343565887,1732726239263,-500.0,9.863e-05,2]
[343565889,1732726239272,-500.0,9.863e-05,2]
[343565891,1732726239281,-545.25,9.863e-05,2]
[343565893,1732726239291,-500.0,9.863e-05,2]
[343565895,1732726239300,-500.0,9.863e-05,2]
[343565898,1732726239310,-424.56,9.863e-05,2]
[343565901,1732726239319,-406.22484139,9.863e-05,2]
[343565903,1732726239329,-500.0,9.863e-05,2]
[343565905,1732726239338,-500.0,9.863e-05,2]
[343565907,1732726239348,-500.0,9.863e-05,2]
[343565909,1732726239358,-500.0,9.863e-05,2]
[343565911,1732726239368,-518.16,9.863e-05,2]
[343565913,1732726239382,-500.0,9.863e-05,2]
[343565915,1732726239391,-500.0,9.863e-05,2]
[343565917,1732726239400,-527.24,9.863e-05,2]
[343565919,1732726239409,-500.0,9.863e-05,2]
[343565921,1732726239419,-500.0,9.863e-05,2]
[343565923,1732726239427,-500.0,9.863e-05,2]
[343565925,1732726239437,-500.0,9.863e-05,2]
[343565927,1732726239446,-567.11,9.863e-05,2]
[343565929,1732726239455,-365.92342221,9.863e-05,2]
[343565931,1732726239465,-500.0,9.863e-05,2]
[343565933,1732726239474,-511.38,9.863e-05,2]
[343565935,1732726239484,-500.0,9.863e-05,2]